fUSD/lending_fUSD_20260409
["ID","MTS","AMOUNT","RATE_DAILY","PERIOD"]
[420120305,1775692251740,-1327.717186,0.00015708,2]
[420120306,1775692251750,-348.208768,0.00015708,2]
[420120307,1775692251760,-151.0,0.00015708,2]
[420120308,1775692251770,-348.208768,0.00015708,2]
[420120309,1775692251779,-348.208768,0.00015708,2]
[420120310,1775692251789,-348.208768,0.00015708,2]
[420120311,1775692251799,-191.0,0.00015708,2]
[420120312,1775692251809,-191.0,0.00015708,2]
[420120313,1775692251819,-191.0,0.00015708,2]
[420120314,1775692251828,-151.0,0.00015708,2]
[420120315,1775692251838,-170.906244,0.00015708,2]
[420120316,1775692251848,-151.0,0.00015708,2]
[420120317,1775692251858,-151.0,0.00015708,2]
[420120318,1775692251867,-151.0,0.00015708,2]
[420120319,1775692251877,-151.0,0.00015708,2]
[420120320,1775692251886,-151.0,0.00015708,2]
[420120321,1775692251895,-151.0,0.00015708,2]
[420120322,1775692251905,-1327.301698,0.00015708,2]
[420120323,1775692251914,-151.0,0.00015708,2]
[420120324,1775692251924,-738.518437,0.00015708,2]
[420120325,1775692251934,-151.0,0.00015708,2]
[420120326,1775692251943,-151.0,0.00015708,2]
[420120327,1775692251953,-1327.301698,0.00015708,2]
[420120328,1775692251963,-151.0,0.00015708,2]
[420120329,1775692251972,-738.518437,0.00015708,2]
[420120330,1775692251982,-153.621156,0.00015708,2]
[420120331,1775692251991,-151.0,0.00015708,2]
[420120332,1775692252001,-151.0,0.00015708,2]
[420120333,1775692252011,-738.518437,0.00015708,2]
[420120334,1775692252021,-1327.301698,0.00015708,2]
[420120335,1775692252030,-151.0,0.00015708,2]
[420120336,1775692252040,-151.0,0.00015708,2]
[420120337,1775692252050,-738.518437,0.00015708,2]
[420120338,1775692252060,-1327.301698,0.00015708,2]
[420120339,1775692252070,-177.112045,0.00015708,2]
[420120340,1775692252079,-151.0,0.00015708,2]
[420120341,1775692252089,-177.112045,0.00015708,2]
[420120342,1775692252099,-151.0,0.00015708,2]
[420120343,1775692252108,-151.0,0.00015708,2]
[420120344,1775692252118,-177.112045,0.00015708,2]
[420120345,1775692252127,-200.34394,0.00015708,2]
[420120346,1775692252137,-151.0,0.00015708,2]
[420120347,1775692252147,-151.0,0.00015708,2]
[420120348,1775692252157,-177.112045,0.00015708,2]
[420120349,1775692252167,-392.797224,0.00015708,2]
[420120350,1775692252177,-151.0,0.00015708,2]
[420120351,1775692252187,-392.797224,0.00015708,2]
[420120352,1775692252198,-151.0,0.00015708,2]
[420120353,1775692252209,-1420992.81198486,0.0001571,2]
[420120354,1775692254285,-72.89131617,0.0001507,2]
[420120355,1775692254298,-2898.9270007,0.0001507,2]
[420120356,1775692254431,-3050.18168313,0.0001507,2]
[420120357,1775692254442,-3497.54468051,0.00015705,2]
[420120358,1775692254455,-547.460072,0.00015705,2]
[420120359,1775692279094,150.0,0.000161,120]
[420120361,1775692858295,150.0,0.00011233,120]
[420120373,1775693029503,1116.0,9.457e-05,2]
[420120374,1775693034368,787.33548689,8.985e-05,2]
[420120375,1775693034394,328.66451311,8.985e-05,2]
[420120376,1775693039282,1116.0,8.535e-05,2]
[420120377,1775693043741,1102.42097378,8.511e-05,2]
[420120378,1775693043764,13.57902622,8.511e-05,2]
[420120379,1775693048301,1116.0,8.511e-05,2]
[420120380,1775693052851,1116.0,8.511e-05,2]
[420120384,1775693417743,301.50646067,9.436e-05,2]
[420120385,1775693417766,1298.49353933,9.436e-05,2]
[420120389,1775693431767,-519.65946274,9.579e-05,2]
[420120390,1775693431984,-486.34053726,9.579e-05,2]
[420120392,1775693432106,-194.0,9.579e-05,2]
[420120394,1775693432116,-8614.82,9.58e-05,2]
[420120396,1775693432125,-300.0,9.588e-05,2]
[420120398,1775693432135,-1852.42,9.589e-05,2]
[420120399,1775693432145,-250.0,9.672e-05,2]
[420120402,1775693432155,-166.66,9.754e-05,2]
[420120403,1775693432164,-250.0,9.77e-05,2]
[420120405,1775693432174,-150.0,9.833e-05,2]
[420120407,1775693432183,-300.0,9.833e-05,2]
[420120409,1775693432192,-150.0,9.834e-05,2]
[420120411,1775693432202,-150.0,9.834e-05,2]
[420120413,1775693432211,-150.0,9.834e-05,2]
[420120414,1775693432220,-150.0,9.834e-05,2]
[420120415,1775693432230,-150.0,9.834e-05,2]
[420120416,1775693432862,-174.61425545,9.834e-05,2]
[420120417,1775693432873,-500.0,9.834e-05,2]
[420120418,1775693432883,-500.0,9.834e-05,2]
[420120419,1775693432892,-500.0,9.834e-05,2]
[420120420,1775693432901,-500.0,9.834e-05,2]
[420120421,1775693432911,-500.0,9.834e-05,2]
[420120422,1775693432920,-500.0,9.834e-05,2]
[420120423,1775693432930,-500.0,9.834e-05,2]
[420120424,1775693432939,-412.62015671,9.834e-05,2]
[420120425,1775693432948,-500.0,9.834e-05,2]
[420120426,1775693432957,-500.0,9.834e-05,2]
[420120427,1775693432967,-500.0,9.834e-05,2]
[420120428,1775693432977,-500.0,9.834e-05,2]
[420120429,1775693432987,-500.0,9.834e-05,2]
[420120430,1775693432997,-500.0,9.834e-05,2]
[420120431,1775693433006,-500.0,9.834e-05,2]
[420120432,1775693433016,-500.0,9.834e-05,2]
[420120433,1775693433025,-500.0,9.834e-05,2]
[420120434,1775693433034,-500.0,9.834e-05,2]
[420120435,1775693433043,-500.0,9.834e-05,2]
[420120436,1775693433053,-500.0,9.834e-05,2]
[420120437,1775693433063,-500.0,9.834e-05,2]
[420120438,1775693433072,-500.0,9.834e-05,2]
[420120439,1775693433081,-315.99611261,9.834e-05,2]
[420120440,1775693433095,-150.0,9.834e-05,2]
[420120441,1775693433105,-150.0,9.834e-05,2]
[420120442,1775693433115,-150.0,9.834e-05,2]
[420120443,1775693433124,-150.0,9.834e-05,2]
[420120444,1775693433134,-150.0,9.834e-05,2]
[420120445,1775693433144,-185.23665201,9.834e-05,2]
[420120446,1775693433154,-150.0,9.834e-05,2]
[420120447,1775693433164,-150.0,9.834e-05,2]
[420120448,1775693433174,-223.44111523,9.834e-05,2]
[420120449,1775693433183,-3950.3354,9.853e-05,2]
[420120450,1775693433193,-1069.49567053,9.953e-05,2]
[420120451,1775693433203,-71039.97,9.953e-05,2]
[420120452,1775693433213,-1116.0,9.955e-05,2]
[420120453,1775693433223,-200.0,0.0001,3]
[420120454,1775693433234,-2500.0,0.00010014,2]
[420120455,1775693433244,-500.0,0.00010106,2]
[420120456,1775693433255,-500.0,0.00010106,2]
[420120457,1775693433265,-500.0,0.00010106,2]
[420120458,1775693433275,-500.0,0.00010106,2]
[420120459,1775693433284,-500.0,0.00010106,2]
[420120460,1775693433294,-500.0,0.00010106,2]
[420120461,1775693433304,-500.0,0.00010106,2]
[420120462,1775693433313,-500.0,0.00010106,2]
[420120463,1775693433323,-500.0,0.00010106,2]
[420120464,1775693433332,-500.0,0.00010106,2]
[420120465,1775693433342,-500.0,0.00010106,2]
[420120466,1775693433352,-500.0,0.00010106,2]
[420120467,1775693433361,-500.0,0.00010106,2]
[420120468,1775693433371,-500.0,0.00010106,2]
[420120469,1775693433381,-500.0,0.00010106,2]
[420120470,1775693433391,-500.0,0.00010106,2]
[420120471,1775693433401,-500.0,0.00010106,2]
[420120472,1775693433411,-500.0,0.00010106,2]
[420120473,1775693433421,-500.0,0.00010106,2]
[420120474,1775693433432,-500.0,0.00010106,2]
[420120475,1775693433442,-500.0,0.00010106,2]
[420120476,1775693433453,-500.0,0.00010106,2]
[420120477,1775693433462,-500.0,0.00010106,2]
[420120478,1775693433473,-500.0,0.00010106,2]
[420120479,1775693433483,-210.1167027,0.00010106,2]
[420120480,1775693433493,-500.0,0.00010106,2]
[420120481,1775693433502,-500.0,0.00010106,2]
[420120482,1775693433511,-500.0,0.00010106,2]
[420120483,1775693433521,-500.0,0.00010106,2]
[420120484,1775693433531,-500.0,0.00010106,2]
[420120485,1775693433540,-500.0,0.00010106,2]
[420120486,1775693433550,-500.0,0.00010106,2]
[420120487,1775693433560,-500.0,0.00010106,2]
[420120488,1775693433570,-500.0,0.00010106,2]
[420120489,1775693433580,-500.0,0.00010106,2]
[420120490,1775693433590,-500.0,0.00010106,2]
[420120491,1775693433602,-500.0,0.00010106,2]
[420120492,1775693433612,-500.0,0.00010106,2]
[420120493,1775693433622,-500.0,0.00010106,2]
[420120494,1775693433632,-400.0,0.00010106,2]
[420120495,1775693433643,-500.0,0.00010106,2]
[420120496,1775693433653,-500.0,0.00010106,2]
[420120497,1775693433663,-500.0,0.00010106,2]
[420120498,1775693433675,-500.0,0.00010106,2]
[420120499,1775693433684,-500.0,0.00010106,2]
[420120500,1775693433694,-500.0,0.00010106,2]
[420120501,1775693433704,-500.0,0.00010106,2]
[420120502,1775693433714,-500.0,0.00010106,2]
[420120503,1775693433724,-500.0,0.00010106,2]
[420120504,1775693433734,-500.0,0.00010106,2]
[420120505,1775693433744,-151.0,0.00010108,2]
[420120506,1775693433754,-151.0,0.00010108,2]
[420120507,1775693433764,-151.0,0.00010108,2]
[420120508,1775693433773,-151.0,0.00010108,2]
[420120509,1775693433784,-151.0,0.00010108,2]
[420120510,1775693433794,-151.0,0.00010108,2]
[420120511,1775693433804,-500.0,0.00010108,2]
[420120512,1775693433814,-151.0,0.00010108,2]
[420120513,1775693433824,-151.0,0.00010108,2]
[420120514,1775693433834,-151.0,0.00010108,2]
[420120515,1775693433843,-151.0,0.00010108,2]
[420120516,1775693433853,-151.0,0.00010108,2]
[420120517,1775693433863,-151.0,0.00010108,2]
[420120518,1775693433873,-151.0,0.00010108,2]
[420120519,1775693433883,-151.0,0.00010108,2]
[420120520,1775693433893,-151.0,0.00010108,2]
[420120521,1775693433904,-151.0,0.00010108,2]
[420120522,1775693433914,-200.0,0.00010108,2]
[420120523,1775693433924,-151.0,0.00010108,2]
[420120524,1775693433934,-151.0,0.00010108,2]
[420120525,1775693433945,-151.0,0.00010108,2]
[420120526,1775693433955,-151.0,0.00010108,2]
[420120527,1775693433965,-151.0,0.00010108,2]
[420120528,1775693433975,-151.0,0.00010108,2]
[420120529,1775693433986,-151.0,0.00010108,2]
[420120530,1775693433996,-151.0,0.00010108,2]
[420120531,1775693434006,-151.0,0.00010108,2]
[420120532,1775693434016,-151.0,0.00010108,2]
[420120533,1775693434026,-151.0,0.00010108,2]
[420120534,1775693434036,-151.0,0.00010108,2]
[420120535,1775693434047,-151.0,0.00010108,2]
[420120536,1775693434057,-151.0,0.00010108,2]
[420120537,1775693434068,-151.0,0.00010108,2]
[420120538,1775693434077,-151.0,0.00010108,2]
[420120539,1775693434088,-151.0,0.00010108,2]
[420120540,1775693434098,-151.0,0.00010108,2]
[420120541,1775693434109,-151.0,0.00010108,2]
[420120542,1775693434119,-151.0,0.00010108,2]
[420120543,1775693434129,-151.0,0.00010108,2]
[420120544,1775693434139,-1156.41848616,0.00010108,2]
[420120545,1775693434149,-515.99165141,0.00010113,2]
[420120546,1775693434161,-239.44095319,0.00010113,2]
[420120547,1775693434171,-500.0,0.00010113,2]
[420120548,1775693434182,-500.0,0.00010113,2]
[420120549,1775693434192,-500.0,0.00010113,2]
[420120550,1775693434203,-500.0,0.00010113,2]
[420120551,1775693434213,-500.0,0.00010113,2]
[420120552,1775693434224,-500.0,0.00010113,2]
[420120553,1775693434234,-205.00286625,0.00010113,2]
[420120554,1775693434244,-500.0,0.00010113,2]
[420120555,1775693434255,-500.0,0.00010113,2]
[420120556,1775693434265,-165.62949364,0.00010113,2]
[420120557,1775693434276,-500.0,0.00010113,2]
[420120558,1775693434287,-193.32066194,0.00010113,2]
[420120559,1775693434297,-500.0,0.00010113,2]
[420120560,1775693434308,-500.0,0.00010113,2]
[420120561,1775693434318,-205.54131517,0.00010113,2]
[420120562,1775693434328,-500.0,0.00010113,2]
[420120563,1775693434338,-500.0,0.00010113,2]
[420120564,1775693434348,-500.0,0.00010113,2]
[420120565,1775693434359,-500.0,0.00010113,2]
[420120566,1775693434369,-500.0,0.00010173,2]
[420120567,1775693434380,-500.0,0.00010173,2]
[420120568,1775693434390,-500.0,0.00010173,2]
[420120569,1775693434400,-304.93834689,0.00010173,2]
[420120570,1775693434409,-1000.0,0.00010314,2]
[420120571,1775693434420,-1590.4159,0.00010314,2]
[420120572,1775693434431,-200.0,0.00010419,2]
[420120573,1775693434442,-4841.8,0.00010452,2]
[420120574,1775693434454,-1116.0,0.00010479,2]
[420120575,1775693434464,-420.0,0.00010547,2]
[420120576,1775693434475,-250.0,0.00010548,2]
[420120577,1775693434486,-1600.0,0.00010615,2]
[420120578,1775693434496,-1199.20597015,0.00010656,2]
[420120579,1775693434506,-16082.62139376,0.000107,2]
[420120580,1775693436068,-20103.97100404,0.000107,2]
[420120581,1775693436081,-16975.25416101,0.000107,2]
[420120582,1775693436094,-4514.98748764,0.000107,2]
[420120583,1775693436104,-1000.0,0.00010721,2]
[420120584,1775693436114,-1000.0,0.00010721,2]
[420120585,1775693436124,-193.0,0.0001073,2]
[420120586,1775693436135,-255.0,0.00010816,2]
[420120587,1775693436144,-420.0,0.00010816,2]
[420120588,1775693436154,-2400.0,0.000109,3]
[420120589,1775693436164,-150.0,0.00010922,2]
[420120590,1775693436173,-500.0,0.00010958,2]
[420120591,1775693436183,-500.0,0.00010958,3]
[420120592,1775693436192,-500.0,0.00010958,4]
[420120593,1775693436202,-500.0,0.00010958,5]
[420120594,1775693436211,-500.0,0.00010958,6]
[420120595,1775693436221,-500.0,0.00010958,7]
[420120596,1775693436230,-500.0,0.00010958,8]
[420120597,1775693436240,-500.0,0.00010959,2]
[420120598,1775693436249,-226.04203092,0.00010959,2]
[420120599,1775693436259,-169.52746474,0.00010959,2]
[420120600,1775693436268,-1116.0,0.00011031,2]
[420120601,1775693436278,-151.502,0.00011087,2]
[420120602,1775693436288,-33317.93914382,0.00011099,2]
[420120603,1775693436300,-1254.41808677,0.00011099,2]
[420120611,1775693438013,-1343.73963109,0.00011099,2]
[420120612,1775693438027,-7301.41972174,0.00011099,2]
[420120616,1775693440556,-2800.61127414,0.00011099,2]
[420120617,1775693440566,-46018.12785753,0.00011099,2]
[420120618,1775693440576,-150.0,0.000111,2]
[420120619,1775693440585,-185.55,0.00011148,2]
[420120620,1775693440595,-653.36453401,0.00011204,2]
[420120621,1775693440605,-150.0,0.00011233,2]
[420120622,1775693440615,-1500.0,0.00011268,2]
[420120623,1775693440624,-500.0,0.00011268,2]
[420120624,1775693440635,-46018.12785753,0.00011303,2]
[420120625,1775693440644,-587.0,0.00011602,2]
[420120626,1775693440653,-1116.0,0.00011611,2]
[420120627,1775693440663,-240.4,0.00011777,2]
[420120628,1775693440674,-1600.0,0.00011795,2]
[420120629,1775693440684,-1000.0,0.00011816,2]
[420120630,1775693440694,-433.0,0.00011898,2]
[420120631,1775693440703,-587.0,0.00011898,2]
[420120632,1775693440713,-46018.12785753,0.00011919,2]
[420120633,1775693440723,-200.0,0.00012,2]
[420120634,1775693440733,-45025.43,0.00012055,2]
[420120635,1775693440743,-150.99,0.00012087,2]
[420120636,1775693440752,-4357.04,0.00012087,2]
[420120637,1775693440762,-23229.54,0.00012087,2]
[420120638,1775693440772,-9999.99,0.00012087,2]
[420120639,1775693440781,-299.99,0.00012087,2]
[420120640,1775693440791,-150.99,0.00012087,2]
[420120641,1775693440801,-2229.62,0.00012087,2]
[420120642,1775693440811,-1116.0,0.00012222,2]
[420120643,1775693440821,-173.2881,0.000124,2]
[420120644,1775693440830,-162.00655431,0.0001253,2]
[420120645,1775693440840,-46018.12785753,0.00012534,2]
[420120646,1775693440850,-500.0,0.00012667,9]
[420120647,1775693440859,-250.0,0.0001267,2]
[420120648,1775693440868,-823.0,0.00012762,2]
[420120649,1775693440878,-1116.0,0.00012866,2]
[420120650,1775693440887,-4900.0,0.000129,4]
[420120651,1775693440897,-531.58090884,0.00012947,2]
[420120652,1775693440907,-1600.0,0.00012974,2]
[420120653,1775693440916,-100103.49272567,0.00012999,2]
[420120654,1775693440925,-279.84178051,0.00013,2]
[420120655,1775693440935,-736.0,0.00013088,2]
[420120656,1775693440950,-386.0,0.00013088,2]
[420120657,1775693440960,-506.0,0.000131,2]
[420120658,1775693440970,-151.76273863,0.00013113,2]
[420120659,1775693440980,-38207.05716786,0.00013123,2]
[420120660,1775693440989,-46018.12785753,0.00013149,2]
[420120661,1775693440999,-169.939407,0.0001347,2]
[420120662,1775693441009,-387.239998,0.0001347,2]
[420120663,1775693441019,-247.473871,0.0001347,2]
[420120664,1775693441032,-160.0,0.0001347,2]
[420120665,1775693441043,-634.514072,0.0001347,2]
[420120666,1775693441053,-1109.028145,0.0001347,2]
[420120667,1775693441062,-191.979731,0.0001347,2]
[420120668,1775693441073,-160.0,0.0001347,2]
[420120669,1775693441082,-688.171178,0.0001347,2]
[420120670,1775693441092,-1216.342357,0.0001347,2]
[420120672,1775693441101,-150.0,0.00013472,2]
[420120674,1775693441111,-266.846312,0.00013473,2]
[420120675,1775693441121,-1116.0,0.00013543,2]
[420120676,1775693441130,-160.0,0.00013659,2]
[420120677,1775693441140,-176.352214,0.00013659,2]
[420120678,1775693441149,-192.704428,0.00013659,2]
[420120679,1775693441159,-160.0,0.00013659,2]
[420120680,1775693441169,-1173.355138,0.00013659,2]
[420120681,1775693441179,-2186.710276,0.00013659,2]
[420120682,1775693441189,-152.41,0.0001368,2]
[420120683,1775693441199,-266.72,0.00013685,2]
[420120684,1775693441209,-342.93,0.00013691,2]
[420120685,1775693441219,-500.0,0.00013698,2]
[420120686,1775693441230,-501.43489187,0.00013698,2]
[420120687,1775693441240,-500.0,0.00013698,2]
[420120688,1775693441250,-500.0,0.00013698,2]
[420120689,1775693441260,-500.0,0.00013698,2]
[420120690,1775693441269,-500.0,0.00013698,2]
[420120691,1775693441279,-500.0,0.00013698,2]
[420120692,1775693441289,-500.0,0.00013698,2]
[420120693,1775693441299,-500.0,0.00013698,2]
[420120694,1775693441308,-500.0,0.00013698,2]
[420120695,1775693441318,-500.0,0.00013698,2]
[420120696,1775693441328,-500.0,0.00013698,2]
[420120697,1775693441337,-500.0,0.00013698,2]
[420120698,1775693441347,-500.0,0.00013698,2]
[420120699,1775693441357,-500.0,0.00013698,2]
[420120700,1775693441366,-500.0,0.00013698,2]
[420120701,1775693441377,-500.0,0.00013698,2]
[420120702,1775693441386,-500.0,0.00013698,2]
[420120703,1775693441396,-500.0,0.00013698,2]
[420120704,1775693441406,-500.0,0.00013698,2]
[420120705,1775693441416,-500.0,0.00013698,2]
[420120706,1775693441425,-500.0,0.00013698,2]
[420120707,1775693441434,-500.0,0.00013698,2]
[420120708,1775693441443,-500.0,0.00013698,2]
[420120709,1775693441459,-500.0,0.00013698,2]
[420120710,1775693441469,-500.0,0.00013698,2]
[420120711,1775693441479,-500.0,0.00013698,2]
[420120712,1775693441490,-500.0,0.00013698,2]
[420120713,1775693441500,-500.0,0.00013698,2]
[420120714,1775693441510,-500.0,0.00013698,2]
[420120715,1775693441519,-500.0,0.00013698,2]
[420120716,1775693441529,-500.0,0.00013698,2]
[420120717,1775693441539,-500.0,0.00013698,2]
[420120718,1775693441548,-500.0,0.00013698,2]
[420120719,1775693441558,-500.0,0.00013698,2]
[420120720,1775693441568,-500.0,0.00013698,2]
[420120721,1775693441578,-500.0,0.00013698,2]
[420120722,1775693441587,-417.61051604,0.00013698,2]
[420120723,1775693441597,-500.0,0.00013698,2]
[420120724,1775693441607,-500.0,0.00013698,2]
[420120725,1775693441617,-500.0,0.00013698,2]
[420120726,1775693441627,-500.0,0.00013698,2]
[420120727,1775693441637,-500.0,0.00013698,2]
[420120728,1775693441647,-623.88,0.00013698,2]
[420120729,1775693441657,-530.43633324,0.00013698,2]
[420120730,1775693441667,-3069.0,0.00013699,2]
[420120731,1775693441677,-150.0,0.00013699,2]
[420120732,1775693441687,-150.0,0.00013699,2]
[420120733,1775693441696,-150.0,0.00013699,2]
[420120734,1775693441706,-852.98,0.00013699,2]
[420120735,1775693441715,-200.0,0.00013699,2]
[420120736,1775693441726,-166.66,0.00013699,2]
[420120737,1775693441736,-500.0,0.00013699,10]
[420120738,1775693441746,-459.40301097,0.00013699,2]
[420120739,1775693441756,-4626.12607363,0.00013729,2]
[420120740,1775693441766,-38207.05716786,0.00013745,2]
[420120741,1775693441777,-46018.12785753,0.00013764,2]
[420120742,1775693441786,-662.26960582,0.00013797,2]
[420120743,1775693441796,-200.1918,0.000138,2]
[420120744,1775693441806,-150.0,0.0001381,2]
[420120745,1775693441816,-786.02,0.00013832,2]
[420120746,1775693441825,-166.66,0.00013836,2]
[420120747,1775693441835,-985.91,0.00013887,2]
[420120748,1775693441845,-5645.69339955,0.000139,3]
[420120749,1775693441855,-1801.0,0.00013938,5]
[420120750,1775693441864,-150.0,0.00013973,2]
[420120751,1775693441874,-150.0,0.00013973,2]
[420120752,1775693441884,-166.66,0.00013973,2]
[420120753,1775693442526,-208.962422,0.00014,2]
[420120754,1775693442539,-506.0,0.00014029,2]
[420120755,1775693442549,-1152.0,0.00014038,2]
[420120756,1775693442559,-786.02,0.00014106,2]
[420120757,1775693442569,-166.66,0.0001411,2]
[420120759,1775693442580,-176.01818,0.00014143,7]
[420120761,1775693442590,-865.246462,0.00014143,2]
[420120763,1775693442600,-938.415243,0.00014143,7]
[420120764,1775693442610,-1600.0,0.00014153,2]
[420120765,1775693442620,-985.91,0.00014161,2]
[420120766,1775693442630,-160.0,0.00014189,2]
[420120767,1775693442640,-160.0,0.00014189,2]
[420120768,1775693442649,-162.00655431,0.00014215,2]
[420120769,1775693442660,-321.58,0.00014224,2]
[420120770,1775693442670,-150.0,0.00014247,2]
[420120771,1775693442679,-166.66,0.00014247,2]
[420120772,1775693442689,-1116.0,0.00014256,2]
[420120773,1775693442699,-240.480291,0.00014342,2]
[420120774,1775693442709,-1600.029734,0.00014342,7]
[420120775,1775693442719,-38207.05716786,0.00014366,2]
[420120776,1775693442729,-46018.12785753,0.0001438,2]
[420120777,1775693442739,-786.02,0.0001438,2]
[420120778,1775693442749,-166.66,0.00014384,2]
[420120779,1775693442760,-1252.0,0.00014396,2]
[420120780,1775693442769,-1573.0,0.000144,2]
[420120781,1775693442779,-162.0,0.000144,2]
[420120782,1775693442788,-985.91,0.00014435,2]
[420120783,1775693442799,-240.4,0.0001445,2]
[420120784,1775693442811,-321.58,0.00014459,2]
[420120785,1775693442821,-351.0,0.00014621,4]
[420120786,1775693442830,-166.66,0.00014631,2]
[420120787,1775693442841,-4841.8,0.00014633,2]
[420120788,1775693442852,-786.02,0.00014654,2]
[420120789,1775693442862,-1217.0,0.00014672,2]
[420120790,1775693442872,-926.0,0.00014672,2]
[420120791,1775693442883,-2471.0,0.00014672,2]
[420120792,1775693442893,-6022.0,0.00014672,2]
[420120793,1775693442903,-349.05,0.00014683,2]
[420120794,1775693442912,-321.58,0.00014693,2]
[420120795,1775693442922,-883.4,0.00014709,2]
[420120796,1775693442931,-1573.0,0.0001472,2]
[420120797,1775693442940,-162.0,0.0001472,2]
[420120798,1775693442950,-162.0,0.0001472,2]
[420120799,1775693442960,-162.0,0.0001472,2]
[420120800,1775693442970,-250.0,0.00014795,2]
[420120801,1775693442986,-2000.0,0.00014812,2]
[420120802,1775693442998,-500.0,0.00014812,2]
[420120803,1775693443009,-500.0,0.0001488,2]
[420120804,1775693443019,-1500.0,0.00014882,2]
[420120805,1775693443030,-7400.0,0.000149,5]
[420120806,1775693443041,-349.06,0.00014915,2]
[420120807,1775693443052,-258.05,0.00014923,2]
[420120808,1775693443063,-200.0,0.00014924,2]
[420120809,1775693443074,-7965.41053268,0.00014924,2]
[420120810,1775693443086,-1191.11104075,0.00014924,2]
[420120811,1775693443098,-500.0,0.00014924,2]
[420120812,1775693443109,-174.61919141,0.00014924,2]
[420120813,1775693443120,-601.3376128,0.00014924,2]
[420120814,1775693443130,-578.20924308,0.00014924,2]
[420120815,1775693443141,-151.0,0.00014924,2]
[420120816,1775693443152,-151.0,0.00014924,2]
[420120817,1775693443162,-151.0,0.00014924,2]
[420120818,1775693443173,-158.44511549,0.00014924,2]
[420120819,1775693443183,-743.50770149,0.00014924,2]
[420120820,1775693443194,-174.61919142,0.00014924,2]
[420120821,1775693443205,-1500.0,0.00014924,2]
[420120822,1775693443216,-1500.0,0.00014924,2]
[420120823,1775693443228,-1500.0,0.00014924,2]
[420120824,1775693443239,-1500.0,0.00014924,2]
[420120825,1775693443249,-174.61919141,0.00014924,2]
[420120826,1775693443260,-1500.0,0.00014924,2]
[420120827,1775693443271,-1500.0,0.00014924,2]
[420120828,1775693443283,-1500.0,0.00014924,2]
[420120829,1775693443294,-151.0,0.00014924,2]
[420120830,1775693443304,-160.0,0.00014924,2]
[420120831,1775693443315,-1500.0,0.00014924,2]
[420120832,1775693443326,-1532.75885711,0.00014924,2]
[420120834,1775693443337,-174.61919141,0.00014924,2]
[420120836,1775693443349,-170.0,0.00014924,2]
[420120837,1775693443359,-170.0,0.00014924,2]
[420120839,1775693443369,-578.20924308,0.00014924,2]
[420120841,1775693443381,-170.0,0.00014924,2]
[420120843,1775693443392,-170.0,0.00014924,2]
[420120844,1775693443402,-170.0,0.00014924,2]
[420120845,1775693443412,-170.0,0.00014924,2]
[420120846,1775693443422,-170.0,0.00014924,2]
[420120847,1775693443438,-170.0,0.00014924,2]
[420120849,1775693443449,-170.0,0.00014924,2]
[420120851,1775693443460,-170.0,0.00014924,2]
[420120853,1775693443471,-170.0,0.00014924,2]
[420120855,1775693443482,-170.0,0.00014924,2]
[420120857,1775693443493,-279.9045709,0.00014924,2]
[420120859,1775693443504,-170.0,0.00014924,2]